Cogmind - Beta 13 @@@ ROGUE MODE // 2024.04.07 @ 23:02:08 Player: CatPlusPlus Result: Destroyed by YI-UF0 with YI-UF0's Doublenader Performance ------------- Evolutions (0) 0 Regions Visited (2) 400 Robots Destroyed (28) 140 Value Destroyed (579) 579 Prototype IDs (0) 0 Alien Tech Used (0) 0 Bonus (0) 0 TOTAL SCORE: 1119 Bonus ------- None Cogmind --------- Core Integrity 0/250 Matter 133/300 Energy 100/100 System Corruption 0% Temperature Cool (0) Movement Core (750) Ox14 Location -10/Mines Parts ------- > --- POWER (1) -------- (None) > --- PROPULSION (2) --- (None) > --- UTILITY (2) ------ High-capacity Storage Unit Seismic Detector > --- WEAPON (2) ------- Assault Rifle > --- INVENTORY (20) --- Ion Engine Light Ion Engine Light Treads Light Treads Compact Wheel Improved Heat Sink Improved Heat Sink Medium Storage Unit Medium Matter Pod (0) Structural Scanner Sensor Array Signal Interpreter Targeting Computer Hacking Suite Assault Rifle Light Cannon Bore Cannon Grenade Launcher Grenade Launcher Mining Laser Peak State ------------ > --- POWER ------------ Light Nuclear Core > --- PROPULSION ------- Light Treads Light Treads > --- UTILITY ---------- High-capacity Storage Unit Seismic Detector > --- WEAPON ----------- Assault Rifle Bore Cannon > --- INVENTORY -------- Ion Engine Light Ion Engine Light Treads Light Treads Compact Wheel Improved Heat Sink Medium Storage Unit Medium Matter Pod Structural Scanner Sensor Array Signal Interpreter Targeting Computer Hacking Suite Tractor Beam Assault Rifle Assault Rifle Light Cannon Grenade Launcher Grenade Launcher Mining Laser [Rating: 15] Favorites ----------- Power Light Nuclear Core Engine Light Ion Engine Power Core Light Nuclear Core Propulsion Light Treads Treads Light Treads Utility Seismic Detector Device Seismic Detector Storage High-capacity Storage Unit Weapon Assault Rifle Energy Gun Medium Laser Ballistic Gun Assault Rifle Ballistic Cannon Bore Cannon Launcher Grenade Launcher Build | -11 -10 -10 ------- Run | Yrd Mat Min Slots Evolved . | . . . Power . | . . . Propulsion . | . . . Utility . | . . . Weapon . | . . . Parts Attached 30 | 9 17 4 Power 5 | 2 3 . Engine 3 | 2 1 . Core 2 | . 2 . Reactor . | . . . Propulsion 7 | 2 5 . Treads 7 | 2 5 . Leg . | . . . Wheel . | . . . Hover . | . . . Flight . | . . . Utility 4 | 2 2 . Device 1 | 1 . . Storage 3 | 1 2 . Processor . | . . . Hackware . | . . . Protection . | . . . Artifact . | . . . Weapon 14 | 3 7 4 Energy Gun 3 | 1 2 . Energy Cannon . | . . . Ballistic Gun 9 | 2 4 3 Ballistic Cannon 1 | . . 1 Launcher 1 | . 1 . Special Weapon . | . . . Impact Weapon . | . . . Slashing Weapon . | . . . Piercing Weapon . | . . . Special Melee Weapon . | . . . Unidentified Prototypes . | . . . Parts Lost 4 | . . 4 Power 1 | . . 1 Propulsion 2 | . . 2 Utility . | . . . Weapon 1 | . . 1 Highest Loss Streak 4 | . . 4 To Critical Strikes . | . . . Average Slot Usage (%) 99 | . 99 97 Engine 4 | . 5 . Core 9 | . 8 12 Treads 27 | . 28 26 Device 14 | . 14 14 Storage 14 | . 14 14 Energy Gun 3 | . 4 . Ballistic Gun 23 | . 23 21 Naked Turns . | . . . Heaviest Build 57 | 12 51 57 Greatest Support 40 | 40 40 40 Greatest Overweight (x) 1 | . 1 1 Average Overweight (x) . | . . 1 Largest Inventory Capacity 20 | 8 20 20 Average Capacity 17 | 7 17 20 Most Carried 20 | 4 20 20 Average Carried 14 | 1 14 19 Final Capacity 20 | 8 20 20 Final Carried 20 | 4 20 20 Class Distribution -------------------- 84% | Mutant 15% | Scavenger-Mutant Dominant Class ---------------- Mutant | -10/Materials Mutant | -10/Mines Resources | -11 -10 -10 ----------- Run | Yrd Mat Min Matter Collected 606 | 247 334 25 Remotely . | . . . Salvage Created 914 | 88 723 103 Parts 83 | 14 58 11 Haulers Intercepted 1 | . 1 . Recyclers Shooed 2 | . 2 . Parts Field Recycled . | . . . Retrieved Matter . | . . . Parts Self-Destructed . | . . . Prevented . | . . . Kills | -11 -10 -10 ------- Run | Yrd Mat Min Combat Hostiles Destroyed 15 | . 13 2 Guns 14 | . 13 1 Cannons 1 | . . 1 Classes Destroyed 8 | 2 6 . Builder 2 | . 2 . Tunneler 3 | 2 . 1 Hauler 1 | . 1 . Recycler 3 | 1 2 . Operator 1 | . 1 . Watcher 3 | . 3 . Swarmer 3 | . 3 . Grunt 12 | . 10 2 Best Kill Streak 3 | 3 3 3 Combat Bots Only 3 | . 3 2 Max Kills in Single Turn 1 | 1 1 1 Gunslinging . | . . . Exploded . | . . . Melee . | . . . Uniques/NPCs Destroyed . | . . . Combat | -11 -10 -10 -------- Run | Yrd Mat Min Hostile Shots Fired 96 | . 53 43 Missed 33 | . 17 16 Damage Taken 1275 | . 501 774 Core 255 | . 98 157 Absorbed by Shields . | . . . Regen/Repaired (Parts) 118 | . 118 . Core Remaining (%) 100 | 100 . . Volleys Fired 81 | 8 58 15 Largest 2 | 2 2 2 Hottest 77 | 70 70 77 Shots Fired 162 | 16 116 30 Gun 156 | 16 116 24 Cannon 6 | . . 6 Launcher . | . . . Special . | . . . Kinetic 121 | 8 83 30 Thermal 41 | 8 33 . Explosive . | . . . Electromagnetic . | . . . Robot Hit Streak 11 | 2 11 5 Robot Miss Streak 3 | 2 3 2 Penetration Max . | . . . Secondary Targets 1 | . 1 . Max Gunslinging Chain 1 | . 1 . Shots Hit Robots 95 | 8 69 18 Core Hits 50 | 5 38 7 Critical Kills 2 | . . 2 Critical Parts Destroyed . | . . . Critical Strikes 3 | . 1 2 Burn 1 | . 1 . Destroy 2 | . . 2 Melee Attacks . | . . . Impact . | . . . Slashing . | . . . Piercing . | . . . Sneak Attacks . | . . . Combat Hostiles . | . . . Follow-up Attacks . | . . . Damage Inflicted 1127 | 74 791 262 Guns 1086 | 74 791 221 Cannons 41 | . . 41 Explosions . | . . . Melee . | . . . Ramming . | . . . Kinetic 798 | 49 487 262 Thermal 329 | 25 304 . Explosive . | . . . Electromagnetic . | . . . Impact . | . . . Slashing . | . . . Piercing . | . . . Highest Corruption . | . . . Average Corruption . | . . . Corruption Purged . | . . . Corruption Blocked . | . . . Overload Shots . | . . . Overflow Damage . | . . . Projectiles . | . . . Explosions . | . . . Melee . | . . . Knockbacks . | . . . Impact . | . . . Kinetic . | . . . Secondary . | . . . Self-Inflicted Damage . | . . . Shots . | . . . Rammed . | . . . Targets Rammed . | . . . Kicked . | . . . Crushed . | . . . Highest Temperature 212 | 90 212 135 Average Temperature 59 | 41 62 66 Received Heat Transfer 243 | . 177 66 Siege Activations . | . . . Robots Corrupted . | . . . Combat Hostiles . | . . . Parts Fried . | . . . Impact Corruptions . | . . . Robots Melted . | . . . Combat Hostiles . | . . . Parts Melted 6 | 1 5 . Heat Transferred 1036 | 74 962 . Parts Sabotaged . | . . . Parts Stolen . | . . . Parts Stripped . | . . . Power Chain Reactions . | . . . Alert | -11 -10 -10 ------- Run | Yrd Mat Min Peak Influence 284 | 15 284 75 Initial 16 | . 9 16 Average 78 | 4 91 33 Maximum Alert Level 1 | . 1 . Low Security (%) 86 | 100 82 100 Level 1 13 | . 17 . Level 2 . | . . . Level 3 . | . . . Level 4 . | . . . Level 5 . | . . . High Security . | . . . Max Security . | . . . Squads Dispatched 4 | . 4 . Investigation 2 | . 2 . Extermination . | . . . Reinforcement 2 | . 2 . Assault . | . . . Garrison . | . . . Intercept . | . . . Searches Triggered . | . . . Construction Impeded . | . . . Haulers Reinforced . | . . . Active Scanning Responses . | . . . Cargo Convoy Interrupts . | . . . Stealth | -11 -10 -10 --------- Run | Yrd Mat Min Distress Signals 1 | . 1 . Communications Jammed . | . . . Distress Signals . | . . . Times Spotted 25 | . 22 3 Peak Tracking Total 3 | . 3 2 Tactical Retreats 1 | . 1 . Traps | -11 -10 -10 ------- Run | Yrd Mat Min Traps Triggered 1 | . 1 . Indirectly . | . . . Trap Hack Attempts . | . . . Triggered . | . . . Disarmed . | . . . Reprogrammed . | . . . Reused . | . . . Traps Extracted . | . . . Installed . | . . . Triggered . | . . . Machines | -11 -10 -10 ---------- Run | Yrd Mat Min Machines Disabled . | . . . Max in Single Turn . | . . . Machines Repaired . | . . . Machines Dismantled . | . . . Machines Sabotaged . | . . . Overloaded Fab Kills . | . . . Hacking | -11 -10 -10 --------- Run | Yrd Mat Min Machines Accessed 8 | . 8 . Terminals 6 | . 6 . Fabricators . | . . . Repair Stations 1 | . 1 . Recycling Units 1 | . 1 . Scanalyzers . | . . . Garrison Access . | . . . Total Hacks 30 | . 30 . Successful 14 | . 14 . Failed 15 | . 15 . Catastrophic . | . . . Database Lockouts 1 | . 1 . Manual 16 | . 16 . Terminals 23 | . 23 . Fabricators . | . . . Repair Stations 5 | . 5 . Recycling Units 2 | . 2 . Scanalyzers . | . . . Garrison Access . | . . . Terminal Hacks 8 | . 8 . Part Schematic 3 | . 3 . Robot Analysis 3 | . 3 . Unreport Threat 1 | . 1 . Zone Layout 1 | . 1 . Fabricator Hacks . | . . . Repair Station Hacks 4 | . 4 . Scan Component 2 | . 2 . Repair 2 | . 2 . Recycling Unit Hacks . | . . . Scanalyzer . | . . . Garrison Access Hacks . | . . . Unauthorized Hacks 2 | . 2 . Terminals 1 | . 1 . Botnet 1 | . 1 . Fabricators . | . . . Repair Stations . | . . . Recycling Units 1 | . 1 . Tunnel 1 | . 1 . Scanalyzers . | . . . Garrison Access . | . . . Data Cores Recovered . | . . . Used . | . . . Hacking Detections 8 | . 8 . Full Trace Events 1 | . 1 . Feedback Events . | . . . Feedback Blocked . | . . . Robot Schematics Acquired . | . . . Robots Built . | . . . Authchips . | . . . Time . | . . . Total Robot Build Rating . | . . . Part Schematics Acquired 3 | . 3 . Parts Built . | . . . Authchips . | . . . Time . | . . . Total Part Build Rating . | . . . Parts Repaired 2 | . 2 . Time 52 | . 52 . Parts Recycled . | . . . Recycled Matter . | . . . Retrieved Matter . | . . . Retrieved Components . | . . . Parts Scanalyzed . | . . . Part Schematics Acquired . | . . . Parts Damaged . | . . . Bothacking | -11 -10 -10 ------------ Run | Yrd Mat Min Used RIF Installer . | . . . Robots Hacked . | . . . Non-combat . | . . . Combat . | . . . Robot Hacks Applied . | . . . Relay Couplers Released . | . . . Fabnet Peak Effective % . | . . . Robots Rewired . | . . . Allies Hacked . | . . . Hacks Repelled . | . . . Allies | -11 -10 -10 -------- Run | Yrd Mat Min Total Allies . | . . . Largest Group . | . . . Highest-Rated Group . | . . . Highest-Rated Ally . | . . . Total Orders . | . . . Ally Attacks . | . . . Total Damage . | . . . Kills . | . . . Allies Corrupted . | . . . Allies Melted . | . . . Intel | -11 -10 -10 ------- Run | Yrd Mat Min Robot Analysis Total 3 | . 3 . Derelict Logs Recovered . | . . . Drone Launches . | . . . Drone Recoveries . | . . . Exploration | -11 -10 -10 ------------- Run | Yrd Mat Min Turns Passed 1969 | 120 1586 263 Spaces Moved 762 | 54 624 84 Core 4 | 4 . . Treads 758 | 50 624 84 Legs . | . . . Wheels . | . . . Hover . | . . . Flight . | . . . Fastest Speed 50 | 50 160 240 Average Speed 201 | 151 200 240 Slowest Speed 240 | 160 240 240 Overloaded Moves . | . . . Propulsion Burnouts . | . . . Robots Hopped . | . . . Cave-ins Triggered . | . . . Exploration Rate (%) 41 | 5 94 26 Regions Visited 2 Branch Regions 1 Pre-discovered Areas 1 | . 1 . Known Exits Taken . | . . . Unknown Exits Taken 2 | 1 1 . Scrap Searched . | . . . Spaces Dug . | . . . Terrain Destroyed 6 | . . 6 Melee . | . . . Projectile 6 | . . 6 AOE . | . . . Terrain Rammed . | . . . Walls Destroyed . | . . . Machines Disabled . | . . . Actions | -11 -10 -10 --------- Run | Yrd Mat Min Total 1041 | 74 853 114 Wait 127 | . 120 7 Move 760 | 53 623 84 Hop . | . . . Pick Up 26 | 3 21 2 Fast Attach 12 | 8 4 . Attach . | . . . Detach 1 | 1 . . Swap 18 | 1 13 4 Drop 16 | . 14 2 Fire 81 | 8 58 15 Melee . | . . . Ram . | . . . Kick . | . . . Crush . | . . . Escape Stasis . | . . . Rewire . | . . . Trap . | . . . Miscellaneous . | . . . Route ------- -11/Scrapyard -10/Materials (discovered 5 exits: [*Mat x3] / [*Min x2]) -10/Mines (discovered 1 exit: [*Mat]) History --------- Turn | Location | Event 19 | -11/Scrapyard | Discovered new exit (range 15) 121 | -11/Scrapyard | Entered Materials 318 | -10/Materials | Build established: Mutant 381 | -10/Materials | Discovered new exit (range 3) 761 | -10/Materials | Discovered new exit (range 9) 995 | -10/Materials | Discovered new exit (range 9) 1179 | -10/Materials | Discovered new exit (range 7) 1256 | -10/Materials | Repaired Assault Rifle 1284 | -10/Materials | Repaired Lgt. Treads 1625 | -10/Materials | Discovered new exit (range 8) 1659 | -10/Materials | Central database locked down 1707 | -10/Materials | Entered Mines 1721 | -10/Mines | Discovered new exit (range 5) 1807 | -10/Mines | A weapon hastily lodged in a ceiling crevice suddenly fell to the ground 1952 | -10/Mines | Core integrity fell below 50% 1963 | -10/Mines | Core integrity fell below 20% 1970 | -10/Mines | Destroyed by YI-UF0 with YI-UF0's Doublenader Last Messages --------------- 01949_ YI-UF0: "WHOMP!" 01949_ T-07 Excavator destroyed. 01950_ K-01 Serf collects debris. 01951_ The unstable cave ceiling collapses. 01954_ K-01 Serf collects debris. 01955_ Lgt. Nuclear Core destroyed. 01958_ K-01 Serf collects debris. 01961_ The unstable cave ceiling collapses. 01961_ U-05 Engineer builds a Wall. 01961_ K-01 Serf collects debris. 01962_ The unstable cave ceiling collapses. 01962_ Lgt. Treads destroyed. 01964_ The unstable cave ceiling collapses. 01967_ YI-UF0 mumbles something. 01967_ U-05 Engineer lays Concrete. 01968_ The unstable cave ceiling collapses. 01968_ U-05 Engineer builds a Wall. 01968_ Assault Rifle destroyed. 01968_ Lgt. Treads destroyed. 01970_ The unstable cave ceiling collapses. Map ----- +----------------------------------------------------+ | ?????????????????????????????????????????????????? | | ?????????????????????????????????????????????????? | | ?????????????????????????????????????????????????? | | ?????????????????????????????????????????????????? | | ?????????????????????????????????????????????????? | | ?????????????????????????????????????????????????? | | ?????????????????????????????????????????????????? | | ?????????????????????????????????????????????????? | | ?????????????????????????????????????????????????? | | ?????????????????????????????????????????????????? | | ??????????????????????????? ?????????????????????? | | ??????????????????????????? ????????????????????? | | ??????????????????????????# ????????????????????? | | ??????????????????????##?? ????? #??????????????? | | ??????????????????????# ?# ???? ????????????? | | ???????????????######## ? ??? ????????????? | | ??????????????## # ? =?#? = ???????????? | | ????????????? # # % ???????????? | | ????????????? # %# # %??????????? | | ?????????????# g # ??????????? | | ?????????????# # ????????????? | | ?????????????# ""????????????? | | ??????????????# "" ???????????? | | ?????????????????# " ""?????????? | | ?????????????????# ????????? | | ??????????????????# @ # ????????? | | ??????????? #??????????????? | | ?????????????######## ##??????????????? | | ????????????????????## ##???????????????? | | ????????????????????# ##????????????????? | | ????????????????????# #?????????????????? | | ????????????????????## #?????????????????? | | ?????????????????????# #r # ##?????????????????? | | ?????????????????????# #u ###??????????????????? | | ???????? ?????????### ######??????????????? | | ?????? ########* ##?????????????? | | ?????? !=!!= #?????????????? | | ?????? %*%[ ##????????????? | | ?????????# ########" ## #????????????? | | ????????????????????#% #### #??????????? | | ????????????????????## ###??# #?????????? | | ?????????????????????## #????## #?????????? | | ??????????????????????## #??????# ##?????????? | | ???????????????????????# #???????#####??????????? | | ???????????????????????# ###????????????????????? | | ???????????????????????# ##???????????????????? | | ???????????????????##### #???????????????????? | | ???????????????????# ########????????????? | | ??????????????????# ##???????????? | | ??????????????????# #?#?????????? | +----------------------------------------------------+ Best States ------------- Heat Dissipation 25 Energy Generation 14 Energy Capacity 250 Matter Stores 300 Matter Capacity 300 Sight Range 16 Terrain Scan Density 10 Evasion (%) 40 Recoil Reduction 2 Item Schematics ----------------- Hcp. Storage Unit | -10/Materials | Hacked Huge Storage Unit | -10/Materials | Hacked Cargo Storage Unit | -10/Materials | Hacked Robot Schematics ------------------ None Fabricated ------------ Nothing Alien Tech Used ----------------- None Achievements -------------- None Challenges ------------ None Game ------ Seed MachineIntegritySink Manual? 0 Play Time 00:15:50 Cumulative 104.3 hours Start 2024.04.07 @ 22:44:42 End 2024.04.07 @ 23:02:08 Sessions 1 Manual Loads 0 Difficulty Rogue Special Mode None Game No. 59 Rogue 59 Adventurer 0 Explorer 0 Win Type - Total 4 Types 3/0/0/1/0/0/0/0/0 Lore% 56 Gallery% 72 Achievement% 49 Wizard Run 0 Options --------- Layout 2 ASCII 0 Keyboard 1 Movement Numpad Keybinds 0 Fullscreen 2 Font 32/Tamsyn Map View 50x44 Zoom Use 0% Tactical HUD 1 Map Filters NONE Filters NONE Steam 1 RUN: 6767213e-4e66-4052-a4c9-3e94e84813cc